[Event "USA Championship 2024"]
[Site "Saint Louis"]
[Date "2024.10.19"]
[Round "8.1"]
[White "Liang, Awonder"]
[Black "Sevian, Samuel"]
[Result "1/2-1/2"]
[ECO "C01"]
[WhiteElo "2677"]
[BlackElo "2689"]
[Annotator "TA"]
[PlyCount "54"]
[EventDate "2024.10.09"]
[EventType "tourn"]
[EventCountry "USA"]
[SourceTitle "playchess.com"]
[Source "ChessBase"]
[SourceQuality "1"]
[TimeControl "40/5400+30:1800+30"]

{[%evp 25,54,0,0,0,0,-4,15,0,0,-12,11,0,0,0,0,0,0,0,0,0,0,0,0,0,0,0,0,0,0,0,0]} 1. e4 {[%emt 0:00:01]} e6 {[%emt 0:00:08]} 2. d4 {[%emt 0:00:07]} d5 {[%emt 0:00:06]} 3. exd5 {[%emt 0:00:05]} exd5 {[%emt 0:00:05]} 4. Nf3 {[%emt 0:00:05]} Nf6 {[%emt 0:04:38]} 5. Bd3 {[%emt 0:00:19]} Bd6 {[%emt 0:01:01]} 6. O-O {[%emt 0:00:12]} O-O {[%emt 0:00:05]} 7. Re1 {[%emt 0:00:05]} Bg4 {[%emt 0:01:16]} 8. Bg5 {[%emt 0:01:01]} Nbd7 {[%emt 0:01:28]} 9. Nbd2 {[%emt 0:00:14]} c6 {[%emt 0:01:53]} 10. c3 {[%emt 0:00:34]} Qc7 {[%emt 0:00:34]} 11. Qc2 {[%emt 0:00:18]} Rfe8 {[%emt 0:01:45]} 12. h3 {[%emt 0:01:19]} Bh5 {[%emt 0:02:25]} 13. Rxe8+ {[%emt 0:00:43]} Rxe8 {[%emt 0:00:05] The position is equal.} 14. Re1 {[%emt 0:00:08]} Rxe1+ {[%emt 0:02:13]} 15. Nxe1 {[%emt 0:00:05]} a5 {[%emt 0:04:15]} 16. a4 {[%emt 0:00:48]} Bg6 {[%emt 0:02:08]} 17. Nef3 {[%emt 0:00:26]} Kf8 {[%emt 0:04:50]} 18. Nh4 {[%emt 0:02:34][%cal Rh4g6]} Bxd3 {[%emt 0:03:19]} 19. Qxd3 {[%emt 0:00:04]} Bf4 {[%emt 0:00:48]} 20. Bxf4 {[%emt 0:00:25]} Qxf4 {[%emt 0:00:03]} 21. g3 {[%emt 0:00:27]} Qd6 {[%emt 0:00:17]} 22. Kg2 {[%emt 0:00:25]} g6 {[%emt 0:00:09]} 23. Nhf3 {[%emt 0:00:06]} Nb6 {[%emt 0:01:46]} 24. Qc2 {[%emt 0:00:17]} Nbd7 {[%emt 0:00:04]} 25. Qd3 {[%emt 0:00:07]} Nb6 {[%emt 0:00:05]} 26. Qc2 {[%emt 0:00:03]} Nbd7 {[%emt 0:00:24]} 27. Qd3 {[%emt 0:00:05]} Nb6 {[%emt 0:00:17] Not much happened in this game.   Weighted Error Value: White=0.03 (flawless) /Black=0.03 (flawless) .  OK:         	White=1     	Black=6} 1/2-1/2

[Event "USA Championship 2024"]
[Site "Saint Louis"]
[Date "2024.10.19"]
[Round "8.2"]
[White "So, Wesley"]
[Black "Caruana, Fabiano"]
[Result "1/2-1/2"]
[ECO "D38"]
[WhiteElo "2751"]
[BlackElo "2796"]
[Annotator "TA"]
[PlyCount "148"]
[EventDate "2024.10.09"]
[EventType "tourn"]
[EventCountry "USA"]
[SourceTitle "playchess.com"]
[Source "ChessBase"]
[SourceQuality "1"]
[TimeControl "40/5400+30:1800+30"]

{[%evp 82,148,19,8,8,8,13,5,7,7,8,8,8,0,0,0,8,0,8,0,0,0,6,8,8,8,8,8,36,0,0,0,0,0,0,0,18,14,11,8,8,0,0,0,0,0,0,0,0,-8,0,0,0,0,0,0,0,0,0,0,0,0,0,0,0,0,0,0,0]} 1. d4 {[%emt 0:00:27]} Nf6 {[%emt 0:00:05]} 2. Nf3 {[%emt 0:00:06]} e6 {[%emt 0:00:18]} 3. c4 {[%emt 0:00:13]} d5 {[%emt 0:00:09]} 4. Nc3 {[%emt 0:00:04]} Bb4 {[%emt 0:00:09]} 5. Qb3 {[%emt 0:01:55]} c5 {[%emt 0:01:57]} 6. dxc5 {[%emt 0:00:06]} Nc6 $1 {[%emt 0:00:37] 6...Nc6 is better than 6...Na6. D38: Queen's Gambit Declined: Ragozin Defence (4 Nf3 Bb4).} 7. Bg5 {[%emt 0:00:09]} Qa5 {[%emt 0:06:37]} 8. Bxf6 {[%emt 0:00:29]} dxc4 {[%emt 0:00:05]} 9. Qxc4 {[%emt 0:00:06]} gxf6 {[%emt 0:00:02]} 10. Rc1 {[%emt 0:00:17]} Qxc5 {[%emt 0:01:06]} 11. Qh4 {[%emt 0:00:18]} Bxc3+ {[%emt 0:09:28]} 12. Rxc3 {[%emt 0:00:45]} Qb4 {[%emt 0:05:51]} 13. Qxb4 {[%emt 0:20:13]} Nxb4 {[%emt 0:00:14]} 14. a3 {[%emt 0:00:03]} Nd5 {[%emt 0:02:30]} 15. Rc2 {[%emt 0:02:00]} Bd7 {[%emt 0:05:20]} 16. e4 $146 {[%emt 0:00:50]} ({Predecessor:} 16. e3 Ke7 17. Bc4 Nb6 18. Bb3 Rac8 19. Rxc8 Rxc8 20. Kd2 Rg8 21. Rg1 Bc6 22. Ne1 {0-1 Petrovic,A (2230)-Lashkin,J (2399) Titled Tuesday intern op 12th Jul Early blitz 2022 (1)}) 16... Nb6 {[%emt 0:04:27]} 17. Bd3 {[%emt 0:00:17]} Ke7 {[%emt 0:01:12]} 18. Ke2 {[%emt 0:00:09]} Rac8 {[%emt 0:00:36]} 19. Rhc1 {[%emt 0:00:08]} e5 {[%emt 0:02:14]} 20. Nd2 {[%emt 0:03:53]} Rxc2 {[%emt 0:06:30]} 21. Rxc2 {[%emt 0:00:53]} Rc8 {[%emt 0:00:04]} 22. Rxc8 {[%emt 0:02:56]} Bxc8 {[%emt 0:00:18]} 23. Ke3 {[%emt 0:00:14]} Be6 {[%emt 0:01:19]} 24. f4 {[%emt 0:01:41]} exf4+ {[%emt 0:00:33]} 25. Kxf4 {[%emt 0:00:06]} Nd7 {[%emt 0:00:23]} 26. Nf3 {[%emt 0:00:34]} Kd6 {[%emt 0:00:48]} 27. Bb5 {[%emt 0:01:07]} Nf8 {[%emt 0:01:24]} 28. e5+ {[%emt 0:03:21]} fxe5+ {[%emt 0:00:11]} 29. Nxe5 {[%emt 0:00:02]} f6 {[%emt 0:06:01]} 30. Nf3 {[%emt 0:01:45]} Ng6+ {[%emt 0:00:04]} 31. Ke3 {[%emt 0:03:18]} Ne5 {[%emt 0:00:09]} 32. Nd2 {[%emt 0:05:32]} Bd5 {[%emt 0:02:03]} 33. g3 {[%emt 0:01:09]} h6 {[%emt 0:00:11]} 34. b4 {[%emt 0:02:34]} b6 {[%emt 0:00:55]} 35. Be2 {[%emt 0:02:59]} Ke6 {[%emt 0:02:49]} 36. Kf4 {[%emt 0:00:16]} Ke7 {[%emt 0:03:10]} 37. Ke3 {[%emt 0:00:30]} Ke6 {[%emt 0:00:10]} 38. Kf4 {[%emt 0:00:23]} Ke7 {[%emt 0:00:04]} 39. Kf5 {[%emt 0:00:56]} Be6+ {[%emt 0:00:20]} 40. Ke4 {[%emt 0:00:09]} Kd6 {[%emt 0:00:09]} 41. Kf4 {[%emt 0:30:21]} Bd5 {[%emt 0:31:42]} 42. Ne4+ {[%emt 0:00:13]} Ke6 {[%emt 0:07:02]} 43. Nc3 {[%emt 0:01:58]} Bc4 {[%emt 0:02:12]} 44. Bd1 {[%emt 0:01:40]} f5 {[%emt 0:12:22]} 45. Ke3 {[%emt 0:01:43]} Ba6 {[%emt 0:02:20]} 46. a4 {[%emt 0:03:48]} Bf1 {[%emt 0:02:38]} 47. h4 {[%emt 0:13:39]} Nc6 {[%emt 0:04:54]} 48. b5 {[%emt 0:01:25]} Ne5 {[%emt 0:01:10]} 49. Kd4 {[%emt 0:01:36]} a6 {[%emt 0:06:54]} 50. Nd5 {[%emt 0:12:25]} axb5 {[%emt 0:01:10]} 51. axb5 {[%emt 0:00:18]} Kd6 {[%emt 0:00:00]} 52. Ne3 {[%emt 0:00:00]} Bd3 {[%emt 0:00:00]} 53. Bh5 {[%emt 0:00:00]} Be4 {[%emt 0:00:00]} 54. Be2 {[%emt 0:00:00]} Bb1 {[%emt 0:00:00]} 55. Nd5 {[%emt 0:00:00]} Nd7 {[%emt 0:00:00]} 56. Bf1 {[%emt 0:02:15]} Be4 {[%emt 0:00:00]} 57. Ne3 {[%emt 0:00:05]} Ne5 $1 {[%emt 0:00:00]} 58. Be2 {[%emt 0:00:16]} Bb1 {[%emt 0:00:00]} 59. h5 {[%emt 0:05:26]} Nd7 {[%emt 0:00:00]} 60. Nc4+ {[%emt 0:00:49]} Ke7 {[%emt 0:00:00]} 61. Bf3 {[%emt 0:01:20]} Ba2 $1 {[%emt 0:00:00]} 62. Ne3 {[%emt 0:00:36]} Be6 {[%emt 0:00:00]} 63. Bd5 {[%emt 0:04:12]} Nc5 {[%emt 0:02:24]} 64. Nc4 {[%emt 0:01:56]} Nd7 {[%emt 0:00:30]} 65. Ne5 {[%emt 0:01:12]} Nxe5 {[%emt 0:00:29]} 66. Kxe5 {[%emt 0:00:02]} Bd7 {[%emt 0:00:05]} 67. Bc6 {[%emt 0:01:06]} Be6 {[%emt 0:00:17]} 68. Bd5 $1 {[%emt 0:01:10]} Bd7 {[%emt 0:00:03]} 69. Bc4 {[%emt 0:00:15]} Be8 {[%emt 0:00:28]} 70. Be2 {[%emt 0:00:10]} Bd7 {[%emt 0:00:11]} 71. Bf1 {[%emt 0:01:00]} Be6 {[%emt 0:00:11]} 72. Be2 $1 {[%emt 0:00:35]} Bd7 {[%emt 0:00:05]} 73. Bf1 {[%emt 0:00:02]} Be6 {[%emt 0:00:02]} 74. Be2 {[%emt 0:00:02]} Bd7 {[%emt 0:00:12]} 1/2-1/2

[Event "USA Championship 2024"]
[Site "Saint Louis"]
[Date "2024.10.19"]
[Round "8.3"]
[White "Dominguez Perez, Leinier"]
[Black "Oparin, Grigoriy"]
[Result "1/2-1/2"]
[ECO "C54"]
[WhiteElo "2741"]
[BlackElo "2662"]
[Annotator "TA"]
[PlyCount "129"]
[EventDate "2024.10.09"]
[EventType "tourn"]
[EventCountry "USA"]
[SourceTitle "playchess.com"]
[Source "ChessBase"]
[SourceQuality "1"]
[TimeControl "40/5400+30:1800+30"]

{[%evp 10,129,12,17,31,6,22,15,16,10,12,20,18,0,0,0,0,0,0,0,0,2,0,6,6,7,13,0,0,-17,26,10,18,-11,0,-14,0,0,0,0,0,0,0,0,0,0,0,0,0,0,0,0,0,0,0,0,0,0,0,0,0,0,0,0,18,8,7,2,4,2,6,6,17,17,17,17,17,17,17,16,22,0,0,0,0,0,0,0,0,0,0,0,0,0,0,0,0,0,0,0,0,0,0,0,0,0,0,0,0,0,0,0,0,0,0,0,0,0,0,0,0,0]} 1. e4 {[%emt 0:00:03]} e5 {[%emt 0:00:04]} 2. Nf3 {[%emt 0:00:07]} Nc6 {[%emt 0:00:03]} 3. Bc4 {[%emt 0:00:24]} Bc5 {[%emt 0:00:13]} 4. d3 {[%emt 0:00:27]} Nf6 {[%emt 0:00:20]} 5. O-O {[%emt 0:00:21]} d6 {[%emt 0:00:27]} 6. c3 {[%emt 0:00:08]} a5 {[%emt 0:00:44]} 7. Re1 {[%emt 0:00:22]} h6 {[%emt 0:00:52]} 8. Nbd2 {[%emt 0:02:00]} O-O {[%emt 0:00:29]} 9. h3 {[%emt 0:01:08]} Bd7 {[%emt 0:03:24]} 10. Nf1 {[%emt 0:01:44]} a4 {[%emt 0:00:23]} 11. d4 {[%emt 0:00:46]} Bb6 {[%emt 0:00:48]} 12. Ng3 {[%emt 0:00:09]} Re8 {[%emt 0:01:18]} 13. Bf1 {[%emt 0:00:18]} Ba5 {[%emt 0:02:17]} 14. dxe5 {[%emt 0:03:28]} (14. Qxa4 $2 {geht unter.} Bxc3 $19) 14... Nxe5 {[%emt 0:01:35]} 15. Be3 {[%emt 0:00:42]} b5 {[%emt 0:03:00]} 16. Nxe5 {[%emt 0:15:45]} dxe5 {[%emt 0:00:18]} 17. Qf3 {[%emt 0:00:19]} Rb8 {[%emt 0:17:16]} 18. Rad1 {[%emt 0:23:23]} Qe7 {[%emt 0:01:35]} 19. a3 {[%emt 0:03:09]} Be6 {[%emt 0:28:47]} (19... c5 $5) 20. Nf5 {[%emt 0:16:16]} Bxf5 {[%emt 0:00:05] Die Stellung ist ausgeglichen.} 21. Qxf5 {[%emt 0:00:05]} c6 {[%emt 0:13:12]} 22. Rd3 {[%emt 0:03:25]} g6 {[%emt 0:02:35]} 23. Qf3 {[%emt 0:00:18][%cal Oe1d1]} Kg7 {[%emt 0:00:03]} 24. Red1 {[%emt 0:01:03]} Red8 {[%emt 0:00:49] Lässt Rd6 nicht zu} 25. g3 {[%emt 0:03:00]} Rxd3 {[%emt 0:02:19]} 26. Bxd3 {[%emt 0:01:11]} Bb6 {[%emt 0:01:15]} 27. Bc1 {[%emt 0:01:04]} Rd8 {[%emt 0:05:08]} 28. Kg2 {[%emt 0:03:50]} Ne8 {[%emt 0:02:02]} 29. h4 {[%emt 0:04:56]} Qe6 {[%emt 0:04:52]} 30. Qe2 {[%emt 0:03:55]} Nd6 {[%emt 0:01:39]} 31. Bc2 {[%emt 0:01:56]} h5 {[%emt 0:02:59]} 32. Bg5 {[%emt 0:00:12]} Rd7 {[%emt 0:00:56]} 33. Rd3 {[%emt 0:02:34]} Ne8 {[%emt 0:03:35]} 34. Rxd7 {[%emt 0:07:35]} Qxd7 {[%emt 0:00:02]} 35. b3 {[%emt 0:00:49]} axb3 {[%emt 0:00:21]} 36. Bxb3 {[%emt 0:00:01]} Bd8 {[%emt 0:01:48]} 37. Bc1 {[%emt 0:01:13]} Nf6 {[%emt 0:00:25]} 38. f3 {[%emt 0:00:38]} Bb6 {[%emt 0:00:34] Verhindert Qe3.} 39. Qd2 {[%emt 0:00:44]} Qxd2+ {[%emt 0:00:13]} 40. Bxd2 $11 {[%emt 0:00:01][%mdl 4096] Endspiel. KBB-KBN} Ne8 {[%emt 0:01:09]} 41. c4 {[%emt 0:12:01]} Bc5 {[%emt 0:01:07]} 42. cxb5 {[%emt 0:00:44]} cxb5 {[%emt 0:00:05]} 43. Bc1 {[%emt 0:03:48]} Nd6 {[%emt 0:01:13]} 44. Kf1 {[%emt 0:00:05]} Nc4 {[%emt 0:07:23]} 45. Bxc4 {[%emt 0:06:22]} bxc4 {[%emt 0:00:41] KB-KB} 46. Ke2 {[%emt 0:01:34] Droht a4 und aus.} Kf6 {[%emt 0:00:05]} 47. a4 {[%emt 0:00:46][%cal Ba3a4,Ba4a5,Ba5a6][%mdl 32]} Ke6 {[%emt 0:00:08]} 48. a5 {[%emt 0:00:51] [#] Droht stark Be3.} Kd7 {[%emt 0:03:36]} 49. Be3 {[%emt 0:02:47]} Bb4 {[%emt 0:01:11]} 50. a6 {[%emt 0:02:24] Droht Matt per a7.} Kc6 {[%emt 0:00:55]} 51. f4 {[%emt 0:03:14]} exf4 {[%emt 0:01:34]} 52. gxf4 {[%emt 0:00:12]} Be7 {[%emt 0:00:20]} 53. Bf2 {[%emt 0:00:08]} (53. a7 $5 Kb7 $8 54. Bf2 $11) 53... Bd6 {[%emt 0:00:17]} 54. f5 {[%emt 0:01:29]} gxf5 {[%emt 0:00:35]} 55. exf5 {[%emt 0:00:02]} Be7 {[%emt 0:01:38]} 56. Kf3 {[%emt 0:00:31]} (56. a7 $5 Kb7 $8 57. Kd2 $11) 56... Bf6 {[%emt 0:00:36]} 57. Ke4 {[%emt 0:01:03]} (57. a7 $5 Kb7 $8 58. Ke2 $11) 57... Kc7 {[%emt 0:01:34]} 58. Kf3 {[%emt 0:00:53]} (58. a7 $5 Kb7 $8 59. Kf3 $11) 58... Kc6 {[%emt 0:00:05]} 59. Ke2 {[%emt 0:00:25]} Be7 {[%emt 0:00:13]} 60. Kd2 {[%emt 0:00:15] [#] Kc3 wäre nun fies.} (60. a7 $5 Kb7 $8 61. Kf3 $11) 60... Bf6 {[%emt 0:00:08]} 61. Kc2 {[%emt 0:00:13]} Kc7 {[%emt 0:01:29]} 62. Kd2 {[%emt 0:00:24]} (62. a7 $5 Kb7 $8 63. Kd2 $11) 62... Kc6 {[%emt 0:00:05]} 63. Kc2 {[%emt 0:00:04]} Kc7 {[%emt 0:00:04]} 64. Kd2 {[%emt 0:00:05]} (64. a7 $5 Kb7 $8 65. Kc1 $11) 64... Kc6 {[%emt 0:00:09]} 65. Kc2 {[%emt 0:00:55] Eine ausgeglichene aber spannende Partie.   Gewichteter Fehlerwert: Weiß=0.03 (makellos) /Schwarz=0.03 (makellos) .  Ungenau:       	Weiß=1     	Schwarz=1     OK:         	Weiß=29    	Schwarz=28    Bester:       	---       	Schwarz=1} 1/2-1/2

[Event "USA Championship 2024"]
[Site "Saint Louis"]
[Date "2024.10.19"]
[Round "8.4"]
[White "Niemann, Hans Moke"]
[Black "Mishra, Abhimanyu"]
[Result "1-0"]
[ECO "C54"]
[WhiteElo "2733"]
[BlackElo "2630"]
[Annotator "RC"]
[PlyCount "145"]
[EventDate "2024.10.09"]
[EventType "tourn"]
[EventCountry "USA"]
[SourceTitle "playchess.com"]
[Source "ChessBase"]
[SourceQuality "1"]
[TimeControl "40/5400+30:1800+30"]

1. e4 {[%emt 0:00:04]} e5 {[%emt 0:00:03]} 2. Nf3 {[%emt 0:00:30]} Nc6 {[%emt 0:00:06]} 3. Bc4 {[%emt 0:00:05]} Bc5 {[%emt 0:00:24]} 4. O-O {[%emt 0:00:12]} Nf6 {[%emt 0:00:08]} 5. d3 {[%emt 0:00:05]} d6 {[%emt 0:00:33]} 6. c3 {[%emt 0:00:06]} O-O {[%emt 0:00:14]} 7. Re1 {[%emt 0:00:10]} Bb6 {[%emt 0:01:04]} 8. h3 {[%emt 0:03:16]} h6 {[%emt 0:01:35]} 9. Nbd2 {[%emt 0:07:32]} Ne7 {[%emt 0:01:35]} 10. Bb3 {[%emt 0:00:36]} c6 {[%emt 0:05:14]} 11. d4 {[%emt 0:01:09]} Ng6 {[%emt 0:00:50]} 12. Nc4 {[%emt 0:02:15]} Bc7 {[%emt 0:00:55]} 13. dxe5 {[%emt 0:01:00]} dxe5 {[%emt 0:00:41]} 14. Qxd8 {[%emt 0:02:01]} Rxd8 {[%emt 0:00:17]} 15. a4 {[%emt 0:00:06]} a5 {[%emt 0:04:03]} 16. Na3 {[%emt 0:09:17]} Rb8 {[%emt 0:14:19]} 17. Bc4 {[%emt 0:00:56]} Bd7 {[%emt 0:02:18]} 18. Bf1 {[%emt 0:02:11]} Be6 {[%emt 0:10:08]} 19. Nc4 {[%emt 0:01:14]} Ra8 {[%emt 0:02:01]} 20. g3 {[%emt 0:01:34]} b5 {[%emt 0:06:54]} 21. Na3 {[%emt 0:00:43]} bxa4 {[%emt 0:02:17]} 22. Nc4 {[%emt 0:00:40]} Nd7 {[%emt 0:01:58]} 23. Be3 {[%emt 0:00:24]} Bxc4 {[%emt 0:05:33]} 24. Bxc4 {[%emt 0:00:08]} Bb6 {[%emt 0:00:04]} 25. Bc1 {[%emt 0:00:25]} Nc5 {[%emt 0:02:04]} 26. h4 {[%emt 0:01:56]} Nd3 {[%emt 0:05:25]} 27. Bxd3 {[%emt 0:00:12]} Rxd3 {[%emt 0:00:08]} 28. Kg2 {[%emt 0:00:05]} Bc7 {[%emt 0:09:04]} 29. Nd2 {[%emt 0:02:47]} Rb8 {[%emt 0:01:57]} 30. Nc4 {[%emt 0:01:07]} Nf8 {[%emt 0:03:47]} 31. Rxa4 {[%emt 0:09:00]} Rb5 {[%emt 0:00:44]} 32. Be3 {[%emt 0:04:06]} Ne6 {[%emt 0:08:21]} 33. Rea1 {[%emt 0:00:30]} Rd8 {[%emt 0:00:59]} 34. h5 {[%emt 0:01:54]} Rdb8 {[%emt 0:03:40]} 35. Kf3 {[%emt 0:00:21]} Kf8 {[%emt 0:01:51]} 36. R1a2 {[%emt 0:00:56]} Ke7 {[%emt 0:01:10]} 37. Ke2 {[%emt 0:01:06]} Nc5 {[%emt 0:02:00]} 38. Bxc5+ {[%emt 0:00:35]} Rxc5 {[%emt 0:00:02]} 39. Kd3 {[%emt 0:00:52]} Kf6 {[%emt 0:00:54]} 40. Kc2 {[%emt 0:00:07]} Kg5 {[%emt 0:03:46]} 41. Nxa5 {[%emt 0:31:03]} Bxa5 {[%emt 0:08:31]} 42. Rxa5 {[%emt 0:00:00]} Rxa5 {[%emt 0:01:38]} 43. Rxa5 {[%emt 0:00:00]} Kxh5 {[%emt 0:07:31]} 44. Rxe5+ {[%emt 0:00:00]} Kg4 {[%emt 0:00:30]} 45. Rf5 {[%emt 0:00:00]} f6 {[%emt 0:06:46]} 46. b4 {[%emt 0:00:00]} Rd8 {[%emt 0:06:04]} 47. c4 {[%emt 0:00:00]} h5 {[%emt 0:00:14]} 48. Kc3 {[%emt 0:00:00]} Rd6 {[%emt 0:00:43]} 49. c5 {[%emt 0:06:48]} Re6 {[%emt 0:01:04]} 50. Kd4 {[%emt 0:01:03]} g5 {[%emt 0:00:52]} 51. Ke3 {[%emt 0:01:10]} h4 {[%emt 0:02:02]} 52. gxh4 {[%emt 0:00:06]} gxh4 {[%emt 0:00:10]} 53. Rf4+ {[%emt 0:00:03]} Kg5 {[%emt 0:00:41]} 54. Kf3 {[%emt 0:00:55]} Re8 {[%emt 0:00:21]} 55. Rg4+ {[%emt 0:00:40]} Kh5 {[%emt 0:00:06]} 56. Rg7 {[%emt 0:02:45]} h3 {[%emt 0:01:35]} 57. Rg3 {[%emt 0:08:37]} h2 {[%emt 0:00:28]} 58. Rh3+ {[%emt 0:00:34]} Kg6 {[%emt 0:00:02]} 59. Rxh2 {[%emt 0:04:41]} Rb8 {[%emt 0:00:01]} 60. Kg4 {[%emt 0:03:43]} Rxb4 {[%emt 0:00:04]} 61. f3 {[%emt 0:00:21]} f5+ {[%emt 0:01:41]} 62. Kf4 {[%emt 0:00:06]} Rc4 {[%emt 0:00:38]} 63. Ke5 {[%emt 0:00:43]} fxe4 {[%emt 0:00:06]} 64. fxe4 {[%emt 0:00:09]} Rxc5+ {[%emt 0:00:05]} 65. Kd6 {[%emt 0:00:08]} Ra5 {[%emt 0:00:32]} 66. e5 {[%emt 0:00:39]} c5 {[%emt 0:01:13]} 67. e6 {[%emt 0:00:15]} c4 {[%emt 0:00:32]} 68. Rg2+ {[%emt 0:00:49]} Kf5 {[%emt 0:00:35]} 69. e7 {[%emt 0:00:59]} Ra6+ {[%emt 0:00:37]} 70. Kd5 {[%emt 0:00:28]} Ra5+ {[%emt 0:00:10]} 71. Kd4 {[%emt 0:00:10]} Ra8 {[%emt 0:00:14]} 72. Rf2+ {[%emt 0:00:03]} Ke6 {[%emt 0:00:05]} 73. Rf8 {[%emt 0:00:03]} 1-0

[Event "USA Championship 2024"]
[Site "Saint Louis"]
[Date "2024.10.19"]
[Round "8.5"]
[White "Aronian, Levon"]
[Black "Robson, Ray"]
[Result "1/2-1/2"]
[ECO "B50"]
[WhiteElo "2738"]
[BlackElo "2693"]
[Annotator "TA"]
[PlyCount "120"]
[EventDate "2024.10.09"]
[EventType "tourn"]
[EventCountry "USA"]
[SourceTitle "playchess.com"]
[Source "ChessBase"]
[SourceQuality "1"]
[TimeControl "40/5400+30:1800+30"]

{[%evp 18,120,0,0,0,0,20,14,14,7,16,0,10,18,18,0,0,0,0,0,9,9,12,2,28,16,37,0,0,0,0,0,0,0,8,12,10,4,13,6,8,4,4,0,0,0,10,8,18,18,18,18,18,18,18,0,0,0,0,0,9,8,18,0,0,0,0,0,0,0,0,0,0,0,8,8,8,8,8,8,8,8,8,0,0,0,0,0,0,0,0,0,0,0,0,0,0,0,0,0,0,0,0,0,0]} 1. e4 {[%emt 0:00:53]} c5 {[%emt 0:00:18]} 2. Nc3 {[%emt 0:00:05]} d6 {[%emt 0:00:37]} 3. Nge2 {[%emt 0:00:05]} Nf6 {[%emt 0:01:13]} 4. g3 {[%emt 0:00:05]} g6 {[%emt 0:01:28]} 5. d4 {[%emt 0:00:46]} cxd4 {[%emt 0:00:56]} 6. Nxd4 {[%emt 0:00:04]} Bg7 {[%emt 0:00:51]} 7. Bg2 {[%emt 0:00:16]} O-O {[%emt 0:01:12]} 8. h3 {[%emt 0:00:10]} Nc6 {[%emt 0:01:16]} 9. Be3 {[%emt 0:00:20]} Bd7 {[%emt 0:01:28]} 10. O-O {[%emt 0:00:28]} Qc8 {[%emt 0:01:38]} 11. Nxc6 {[%emt 0:00:18]} bxc6 {[%emt 0:02:38]} 12. Kh2 {[%emt 0:00:37]} Rb8 {[%emt 0:05:39]} 13. Rb1 {[%emt 0:02:08]} c5 {[%emt 0:02:29]} 14. Re1 {[%emt 0:05:58]} Re8 {[%emt 0:10:53]} 15. Qd2 {[%emt 0:03:25]} Bc6 {[%emt 0:12:26]} 16. Nd5 {[%emt 0:00:57]} Bxd5 {[%emt 0:12:24]} 17. exd5 {[%emt 0:00:07]} Qa6 {[%emt 0:00:50]} 18. a3 {[%emt 0:12:43]} Rb7 {[%emt 0:04:21]} 19. b4 {[%emt 0:05:42]} Reb8 {[%emt 0:03:43]} 20. Rb3 {[%emt 0:01:52]} cxb4 {[%emt 0:03:03]} 21. axb4 {[%emt 0:00:05]} Qc4 {[%emt 0:00:38][%cal Oh7h5]} 22. Kg1 {[%emt 0:13:14]} Rc8 {[%emt 0:05:31] The position is equal.} (22... Rxb4 $2 {too greedy.} 23. Bf1 Qe4 24. Bxa7 (24. f3 Rxb3 25. fxe4 Nxe4 $18) 24... Rxb3 25. Rxe4 (25. cxb3 Qb4 $11) 25... Nxe4 26. Qf4 $18) 23. Re2 {[%emt 0:09:06]} Ne4 {[%emt 0:08:28]} 24. Bxe4 {[%emt 0:04:42]} Qxe4 {[%emt 0:00:01]} 25. Bg5 {[%emt 0:02:58]} Qd4 {[%emt 0:02:09]} 26. Qxd4 {[%emt 0:04:35]} (26. Bxe7 $2 {loses.} Qxd2 27. Rxd2 Rxe7 $19) 26... Bxd4 {[%emt 0:00:02]} 27. Bxe7 {[%emt 0:00:48]} Re8 {[%emt 0:01:43]} 28. Rd2 $1 {[%emt 0:00:35]} Bxf2+ {[%emt 0:00:51]} 29. Kxf2 {[%emt 0:00:04]} Rexe7 $11 {[%emt 0:00:23][%mdl 4096] Endgame. KRR-KRR} 30. c4 {[%emt 0:00:11]} Re4 {[%emt 0:10:49]} 31. Rc2 {[%emt 0:00:25]} a6 {[%emt 0:02:10]} 32. b5 {[%emt 0:03:57] next b6 is good for White.} axb5 {[%emt 0:00:42]} 33. cxb5 {[%emt 0:00:07]} Rd4 {[%emt 0:02:01]} 34. b6 {[%emt 0:00:25] [#] aiming for Rc7.} Kg7 $1 {[%emt 0:01:20]} 35. Rb5 {[%emt 0:03:09]} Kf6 {[%emt 0:00:03]} 36. Ke3 {[%emt 0:00:53]} Ke5 {[%emt 0:01:17]} 37. Rc8 {[%emt 0:02:04]} Rd1 {[%emt 0:00:37]} 38. g4 {[%emt 0:08:20]} Rh1 {[%emt 0:00:31]} 39. Re8+ {[%emt 0:00:25]} Kf6 {[%emt 0:00:01] [#] ...Re1+ would now be deadly.} 40. Kf4 {[%emt 0:00:10]} Rxh3 {[%emt 0:01:17]} 41. g5+ {[%emt 0:31:02]} Kg7 {[%emt 0:30:01]} 42. Rd8 {[%emt 0:00:07]} h5 {[%emt 0:00:00] ...Re7 is the strong threat.} 43. gxh6+ {[%emt 0:00:00]} Rxh6 {[%emt 0:00:00]} 44. Kg3 {[%emt 0:00:00]} g5 {[%emt 0:00:00]} 45. Rc8 {[%emt 0:00:00]} Rh8 {[%emt 0:00:12]} 46. Rxh8 {[%emt 0:00:00]} Kxh8 {[%emt 0:00:02] KR-KR} 47. Kg4 {[%emt 0:00:00]} Kg7 {[%emt 0:00:29] And now ...Kg6 would win.} 48. Kxg5 {[%emt 0:00:00]} Kf8 {[%emt 0:00:19]} 49. Kf5 {[%emt 0:00:00] Strongly threatening Ke4.} Ke8 {[%emt 0:00:20]} 50. Ke4 {[%emt 0:00:00]} Kd8 {[%emt 0:00:27]} 51. Kd4 {[%emt 0:00:00]} Kc8 {[%emt 0:00:47]} 52. Rb1 {[%emt 0:00:00] Hoping for Kc4.} Rb8 {[%emt 0:02:02]} 53. Rc1+ {[%emt 0:00:00]} Kb7 {[%emt 0:00:29]} 54. Rc6 {[%emt 0:00:00]} Rd8 {[%emt 0:00:19]} 55. Ke4 {[%emt 0:00:00]} Re8+ $1 {[%emt 0:00:29]} 56. Kf4 {[%emt 0:00:00]} Re5 {[%emt 0:00:23]} 57. Rxd6 {[%emt 0:00:00]} f6 {[%emt 0:00:12]} 58. Rxf6 {[%emt 0:00:00]} Rxd5 {[%emt 0:00:06]} 59. Rf5 {[%emt 0:00:00]} Rxf5+ {[%emt 0:00:07]} 60. Kxf5 {[%emt 0:00:00]} Kxb6 {[%emt 0:00:07] An even fight not without its subleties.   Weighted Error Value: White=0.03 (flawless) /Black=0.02 (flawless) .  Inaccurate:     	White=1     	Black=1      OK:         	White=18    	Black=27     Best:        	White=1     	Black=5      Strong:       	White=1     	Black=2} 1/2-1/2